[Event "Titled Tuesday Blitz February 22 Early 2022"]
[White "Tregubov, Pavel V."]
[Black "Baches Garcia, Guillermo"]
[WhiteFideId "4115341"]
[BlackFideId "2209764"]
[WhiteElo "2341"]
[BlackElo "2400"]
[Result "1-0"]
[Round "03"]
[TimeControl "180+1"]
[Date "2022.02.22"]
[WhiteClock "0:01:23"]
[BlackClock "0:00:41"]

1. e4 {[%clk 0:03:00]}  c5 {[%clk 0:02:59]} 2. Nf3 {[%clk 0:03:01]}  d6 {[%clk 0:03:00]} 3. Bb5+ {[%clk 0:03:00]}  Bd7 {[%clk 0:03:00]} 4. Bxd7+ {[%clk 0:02:59]}  Qxd7 {[%clk 0:03:01]} 5. O-O {[%clk 0:03:00]}  Nf6 {[%clk 0:03:00]} 6. Qe2 {[%clk 0:03:00]}  Nc6 {[%clk 0:02:58]} 7. c3 {[%clk 0:03:00]}  e6 {[%clk 0:02:58]} 8. d4 {[%clk 0:03:01]}  cxd4 {[%clk 0:02:59]} 9. cxd4 {[%clk 0:03:01]}  d5 {[%clk 0:02:59]} 10. e5 {[%clk 0:03:01]}  Ne4 {[%clk 0:03:00]} 11. Be3 {[%clk 0:03:02]}  Be7 {[%clk 0:02:55]} 12. Ne1 {[%clk 0:03:02]}  f6 {[%clk 0:02:47]} 13. f3 {[%clk 0:03:00]}  Ng5 {[%clk 0:02:47]} 14. Nd3 {[%clk 0:03:00]}  O-O {[%clk 0:02:45]} 15. Nc3 {[%clk 0:03:01]}  Nf7 {[%clk 0:02:42]} 16. f4 {[%clk 0:03:00]}  fxe5 {[%clk 0:02:29]} 17. fxe5 {[%clk 0:02:59]}  Ng5 {[%clk 0:02:28]} 18. Qg4 {[%clk 0:02:55]}  Ne4 {[%clk 0:02:15]} 19. Nxe4 {[%clk 0:02:52]}  dxe4 {[%clk 0:02:16]} 20. Qxe4 {[%clk 0:02:52]}  Rad8 {[%clk 0:02:10]} 21. Nf4 {[%clk 0:02:39]}  Nxd4 {[%clk 0:01:49]} 22. Bxd4 {[%clk 0:02:26]}  Qxd4+ {[%clk 0:01:47]} 23. Qxd4 {[%clk 0:02:26]}  Rxd4 {[%clk 0:01:48]} 24. Nxe6 {[%clk 0:02:25]}  Rxf1+ {[%clk 0:01:45]} 25. Kxf1 {[%clk 0:02:21]}  Rd2 {[%clk 0:01:38]} 26. Rc1 {[%clk 0:02:14]}  Rxb2 {[%clk 0:01:24]} 27. Rc7 {[%clk 0:02:13]}  Kf7 {[%clk 0:01:08]} 28. Nf4 {[%clk 0:01:42]}  Ke8 {[%clk 0:01:03]} 29. Nd5 {[%clk 0:01:39]}  Bd8 {[%clk 0:00:48]} 30. Rxg7 {[%clk 0:01:37]}  Rxa2 {[%clk 0:00:46]} 31. e6 {[%clk 0:01:36]}  Kf8 {[%clk 0:00:41]} 32. Rxh7 {[%clk 0:01:23]} 1-0


[Site "https://www.chess.com"]

[Event "Titled Tuesday Blitz February 22 Early 2022"]
[White "Vakhlamov, Igor L."]
[Black "Vokhidov, Shamsiddin"]
[WhiteFideId "24126748"]
[BlackFideId "14204223"]
[WhiteElo "2401"]
[BlackElo "2611"]
[Result "0-1"]
[Round "03"]
[TimeControl "180+1"]
[Date "2022.02.22"]
[WhiteClock "0:01:53"]
[BlackClock "0:01:55"]

1. e4 {[%clk 0:03:00]}  c5 {[%clk 0:02:59]} 2. Nf3 {[%clk 0:02:59]}  Nc6 {[%clk 0:03:00]} 3. Nc3 {[%clk 0:02:59]}  d6 {[%clk 0:03:00]} 4. Bb5 {[%clk 0:02:58]}  Bd7 {[%clk 0:03:00]} 5. Bxc6 {[%clk 0:02:59]}  Bxc6 {[%clk 0:03:01]} 6. d4 {[%clk 0:02:59]}  cxd4 {[%clk 0:03:02]} 7. Qxd4 {[%clk 0:03:00]}  Nf6 {[%clk 0:03:02]} 8. Bg5 {[%clk 0:03:00]}  e6 {[%clk 0:03:02]} 9. O-O-O {[%clk 0:03:01]}  Be7 {[%clk 0:03:02]} 10. Rhe1 {[%clk 0:03:01]}  O-O {[%clk 0:03:03]} 11. e5 {[%clk 0:03:02]}  dxe5 {[%clk 0:03:03]} 12. Nxe5 {[%clk 0:03:02]}  Qc7 {[%clk 0:03:03]} 13. Qc4 {[%clk 0:03:02]}  h6 {[%clk 0:02:43]} 14. Nxc6 {[%clk 0:02:58]}  bxc6 {[%clk 0:02:39]} 15. Bxf6 {[%clk 0:02:55]}  Bxf6 {[%clk 0:02:38]} 16. Ne4 {[%clk 0:02:56]}  Be7 {[%clk 0:02:36]} 17. g3 {[%clk 0:02:52]}  Rab8 {[%clk 0:02:35]} 18. Rd3 {[%clk 0:02:49]}  Rb4 {[%clk 0:02:28]} 19. Qc3 {[%clk 0:02:41]}  Rfb8 {[%clk 0:02:22]} 20. b3 {[%clk 0:02:38]}  R4b5 {[%clk 0:02:09]} 21. Red1 {[%clk 0:02:26]}  R8b7 {[%clk 0:01:55]} 22. Rd7 {[%clk 0:01:55]}  Qxd7 {[%clk 0:01:55]} 23. Rxd7 {[%clk 0:01:56]}  Rxd7 {[%clk 0:01:56]} 24. Qxc6 {[%clk 0:01:56]}  Ba3+ {[%clk 0:01:55]} 25. Kb1 {[%clk 0:01:53]}  Rd1# {[%clk 0:01:55]} 0-1


[Site "https://www.chess.com"]

[Event "Titled Tuesday Blitz February 22 Early 2022"]
[White "Van den Dikkenberg, Erik"]
[Black "Miszler, Levente"]
[WhiteFideId "1005880"]
[BlackFideId "763276"]
[WhiteElo "2118"]
[BlackElo "1966"]
[Result "1-0"]
[Round "03"]
[TimeControl "180+1"]
[Date "2022.02.22"]
[WhiteClock "0:00:48"]
[BlackClock "0:01:35"]

1. e4 {[%clk 0:03:00]}  e6 {[%clk 0:03:00]} 2. d4 {[%clk 0:03:00]}  d5 {[%clk 0:03:00]} 3. Nc3 {[%clk 0:03:01]}  Nf6 {[%clk 0:02:58]} 4. e5 {[%clk 0:03:00]}  Nfd7 {[%clk 0:02:57]} 5. f4 {[%clk 0:03:00]}  c5 {[%clk 0:02:58]} 6. Nf3 {[%clk 0:03:00]}  Nc6 {[%clk 0:02:56]} 7. Be3 {[%clk 0:02:59]}  Qb6 {[%clk 0:02:56]} 8. Qd2 {[%clk 0:02:59]}  Qxb2 {[%clk 0:02:47]} 9. Rb1 {[%clk 0:02:58]}  Qa3 {[%clk 0:02:45]} 10. Rb3 {[%clk 0:02:35]}  Qa5 {[%clk 0:02:42]} 11. Rb5 {[%clk 0:02:22]}  Qc7 {[%clk 0:02:38]} 12. dxc5 {[%clk 0:02:11]}  a6 {[%clk 0:02:36]} 13. Rb1 {[%clk 0:02:03]}  Nxc5 {[%clk 0:02:33]} 14. Nd4 {[%clk 0:01:55]}  Nxd4 {[%clk 0:02:29]} 15. Bxd4 {[%clk 0:01:56]}  Bd7 {[%clk 0:02:28]} 16. Be2 {[%clk 0:01:54]}  b5 {[%clk 0:02:22]} 17. O-O {[%clk 0:01:47]}  g6 {[%clk 0:02:18]} 18. Bf3 {[%clk 0:01:30]}  Nb7 {[%clk 0:02:07]} 19. Bxd5 {[%clk 0:01:19]}  Bc5 {[%clk 0:01:44]} 20. Bxb7 {[%clk 0:00:49]}  Bxd4+ {[%clk 0:01:44]} 21. Qxd4 {[%clk 0:00:49]}  Qxb7 {[%clk 0:01:45]} 22. Ne4 {[%clk 0:00:49]}  Bc6 {[%clk 0:01:38]} 23. Nd6+ {[%clk 0:00:48]}  Kf8 {[%clk 0:01:35]} 24. Nxb7 {[%clk 0:00:48]} 1-0


[Site "https://www.chess.com"]

[Event "Titled Tuesday Blitz February 22 Early 2022"]
[White "Vifleemskaia, Svetlana"]
[Black "Stefanov, Plamen"]
[WhiteFideId "4129490"]
[BlackFideId "2900980"]
[WhiteElo "1901"]
[BlackElo "2137"]
[Result "0-1"]
[Round "03"]
[TimeControl "180+1"]
[Date "2022.02.22"]
[WhiteClock "0:00:02"]
[BlackClock "0:00:23"]

1. d4 {[%clk 0:02:52]}  Nf6 {[%clk 0:02:59]} 2. c4 {[%clk 0:02:51]}  c5 {[%clk 0:02:59]} 3. d5 {[%clk 0:02:51]}  b5 {[%clk 0:02:59]} 4. Nd2 {[%clk 0:02:51]}  a6 {[%clk 0:02:58]} 5. e4 {[%clk 0:02:50]}  d6 {[%clk 0:02:57]} 6. cxb5 {[%clk 0:02:48]}  g6 {[%clk 0:02:58]} 7. b3 {[%clk 0:02:48]}  Bg7 {[%clk 0:02:57]} 8. Bb2 {[%clk 0:02:48]}  O-O {[%clk 0:02:49]} 9. Ngf3 {[%clk 0:02:48]}  Bg4 {[%clk 0:02:44]} 10. Qc2 {[%clk 0:02:46]}  Bxf3 {[%clk 0:02:38]} 11. Nxf3 {[%clk 0:02:44]}  Nxe4 {[%clk 0:02:06]} 12. Bxg7 {[%clk 0:02:25]}  Qa5+ {[%clk 0:02:05]} 13. Ke2 {[%clk 0:02:23]}  Kxg7 {[%clk 0:02:00]} 14. Qxe4 {[%clk 0:02:22]}  Nd7 {[%clk 0:01:53]} 15. Nd2 {[%clk 0:01:43]}  Nf6 {[%clk 0:01:51]} 16. Qd3 {[%clk 0:01:41]}  axb5 {[%clk 0:01:50]} 17. f3 {[%clk 0:01:36]}  e6 {[%clk 0:01:47]} 18. dxe6 {[%clk 0:01:32]}  Rfe8 {[%clk 0:01:47]} 19. Kf2 {[%clk 0:01:30]}  Rxe6 {[%clk 0:01:47]} 20. Be2 {[%clk 0:01:29]}  Rae8 {[%clk 0:01:45]} 21. Rhe1 {[%clk 0:01:29]}  c4 {[%clk 0:01:36]} 22. bxc4 {[%clk 0:01:26]}  bxc4 {[%clk 0:01:36]} 23. Nxc4 {[%clk 0:01:26]}  Qc5+ {[%clk 0:01:36]} 24. Kf1 {[%clk 0:01:20]}  d5 {[%clk 0:01:28]} 25. Nd2 {[%clk 0:00:54]}  Re3 {[%clk 0:01:17]} 26. Qb1 {[%clk 0:00:44]}  Qd4 {[%clk 0:01:02]} 27. Nb3 {[%clk 0:00:36]}  Qh4 {[%clk 0:01:02]} 28. h3 {[%clk 0:00:20]}  Nh5 {[%clk 0:00:58]} 29. Qb2+ {[%clk 0:00:19]}  f6 {[%clk 0:00:58]} 30. Kg1 {[%clk 0:00:15]}  Nf4 {[%clk 0:00:47]} 31. Nd4 {[%clk 0:00:14]}  Qg3 {[%clk 0:00:45]} 32. Bf1 {[%clk 0:00:10]}  Nxh3+ {[%clk 0:00:40]} 33. Kh1 {[%clk 0:00:09]}  Rxe1 {[%clk 0:00:35]} 34. Rxe1 {[%clk 0:00:06]}  Rxe1 {[%clk 0:00:35]} 35. Qb7+ {[%clk 0:00:03]}  Kh6 {[%clk 0:00:32]} 36. Qb5 {[%clk 0:00:02]}  Qf2 {[%clk 0:00:23]} 0-1


[Site "https://www.chess.com"]

[Event "Titled Tuesday Blitz February 22 Early 2022"]
[White "Viskelis, Darius"]
[Black "Dounis, Alexandros"]
[WhiteFideId "12800830"]
[BlackFideId "4213238"]
[WhiteElo "1999"]
[BlackElo "2195"]
[Result "0-1"]
[Round "03"]
[TimeControl "180+1"]
[Date "2022.02.22"]
[WhiteClock "0:00:01"]
[BlackClock "0:00:09"]

1. e4 {[%clk 0:03:00]}  d5 {[%clk 0:02:56]} 2. exd5 {[%clk 0:03:00]}  Nf6 {[%clk 0:02:55]} 3. c4 {[%clk 0:02:59]}  c6 {[%clk 0:02:53]} 4. d4 {[%clk 0:03:00]}  cxd5 {[%clk 0:02:52]} 5. Nc3 {[%clk 0:03:01]}  Nc6 {[%clk 0:02:52]} 6. Bg5 {[%clk 0:03:01]}  e6 {[%clk 0:02:46]} 7. c5 {[%clk 0:03:01]}  Be7 {[%clk 0:02:45]} 8. Nf3 {[%clk 0:03:01]}  Ne4 {[%clk 0:02:44]} 9. Bf4 {[%clk 0:02:53]}  Nxc3 {[%clk 0:02:42]} 10. bxc3 {[%clk 0:02:52]}  O-O {[%clk 0:02:43]} 11. Bb5 {[%clk 0:02:51]}  Bd7 {[%clk 0:02:41]} 12. O-O {[%clk 0:02:50]}  Na5 {[%clk 0:02:41]} 13. Rb1 {[%clk 0:02:47]}  a6 {[%clk 0:02:35]} 14. Bxd7 {[%clk 0:02:44]}  Qxd7 {[%clk 0:02:36]} 15. Ne5 {[%clk 0:02:44]}  Qc8 {[%clk 0:02:33]} 16. Qa4 {[%clk 0:02:43]}  Nc6 {[%clk 0:02:27]} 17. Rb6 {[%clk 0:02:35]}  Nxe5 {[%clk 0:02:24]} 18. Bxe5 {[%clk 0:02:36]}  Bd8 {[%clk 0:02:24]} 19. Rb3 {[%clk 0:02:30]}  Bc7 {[%clk 0:02:24]} 20. f4 {[%clk 0:02:26]}  f6 {[%clk 0:02:23]} 21. Bxc7 {[%clk 0:02:25]}  Qxc7 {[%clk 0:02:24]} 22. Rfb1 {[%clk 0:02:25]}  Rab8 {[%clk 0:02:23]} 23. Rb6 {[%clk 0:02:22]}  Qxf4 {[%clk 0:02:21]} 24. Rxe6 {[%clk 0:02:13]}  Qd2 {[%clk 0:02:01]} 25. Re7 {[%clk 0:01:54]}  Qxc3 {[%clk 0:01:56]} 26. Kh1 {[%clk 0:01:16]}  Rfd8 {[%clk 0:01:42]} 27. Qd1 {[%clk 0:01:07]}  Re8 {[%clk 0:01:33]} 28. Rbxb7 {[%clk 0:00:53]}  Rxb7 {[%clk 0:01:05]} 29. Rxe8+ {[%clk 0:00:52]}  Kf7 {[%clk 0:01:05]} 30. Re1 {[%clk 0:00:47]}  Re7 {[%clk 0:00:38]} 31. Rxe7+ {[%clk 0:00:33]}  Kxe7 {[%clk 0:00:38]} 32. h3 {[%clk 0:00:33]}  Kd8 {[%clk 0:00:29]} 33. Kh2 {[%clk 0:00:22]}  g6 {[%clk 0:00:26]} 34. Qa4 {[%clk 0:00:17]}  a5 {[%clk 0:00:23]} 35. Kh1 {[%clk 0:00:08]}  f5 {[%clk 0:00:22]} 36. Kh2 {[%clk 0:00:08]}  f4 {[%clk 0:00:21]} 37. Qd1 {[%clk 0:00:08]}  Kc7 {[%clk 0:00:19]} 38. Qa4 {[%clk 0:00:07]}  Kd8 {[%clk 0:00:17]} 39. a3 {[%clk 0:00:05]}  g5 {[%clk 0:00:16]} 40. Qd1 {[%clk 0:00:04]}  h6 {[%clk 0:00:16]} 41. a4 {[%clk 0:00:04]}  Qe3 {[%clk 0:00:14]} 42. Qh5 {[%clk 0:00:03]}  Qxd4 {[%clk 0:00:14]} 43. Qxh6 {[%clk 0:00:03]}  Qxc5 {[%clk 0:00:14]} 44. Qxg5+ {[%clk 0:00:04]}  Qe7 {[%clk 0:00:14]} 45. Qxf4 {[%clk 0:00:04]}  Qd7 {[%clk 0:00:14]} 46. Qd4 {[%clk 0:00:04]}  Qd6+ {[%clk 0:00:14]} 47. g3 {[%clk 0:00:04]}  Qe6 {[%clk 0:00:14]} 48. h4 {[%clk 0:00:05]}  Qe2+ {[%clk 0:00:14]} 49. Kh3 {[%clk 0:00:05]}  Qe6+ {[%clk 0:00:13]} 50. g4 {[%clk 0:00:05]}  Qc6 {[%clk 0:00:11]} 51. h5 {[%clk 0:00:05]}  Ke7 {[%clk 0:00:10]} 52. Kh4 {[%clk 0:00:05]}  Kf7 {[%clk 0:00:10]} 53. g5 {[%clk 0:00:04]}  Qc4 {[%clk 0:00:10]} 54. Qg4 {[%clk 0:00:01]}  d4 {[%clk 0:00:09]} 55. g6+ {[%clk 0:00:01]}  Kg7 {[%clk 0:00:09]} 56. Qd7+ {[%clk 0:00:01]}  Kf6 {[%clk 0:00:09]} 0-1


[Site "https://www.chess.com"]

[Event "Titled Tuesday Blitz February 22 Early 2022"]
[White "Vusatiuk, Vladimir"]
[Black "Ardila, Oscar Humberto"]
[WhiteFideId "14118610"]
[BlackFideId "4404742"]
[WhiteElo "2157"]
[BlackElo "1898"]
[Result "1-0"]
[Round "03"]
[TimeControl "180+1"]
[Date "2022.02.22"]
[WhiteClock "0:00:50"]
[BlackClock "0:00:13"]

1. e4 {[%clk 0:03:00]}  e5 {[%clk 0:02:59]} 2. Nf3 {[%clk 0:03:01]}  Nc6 {[%clk 0:03:00]} 3. Bc4 {[%clk 0:03:01]}  Nf6 {[%clk 0:03:00]} 4. d4 {[%clk 0:03:01]}  exd4 {[%clk 0:02:52]} 5. e5 {[%clk 0:03:01]}  Ne4 {[%clk 0:02:51]} 6. Qe2 {[%clk 0:03:00]}  Nc5 {[%clk 0:02:50]} 7. O-O {[%clk 0:02:59]}  Be7 {[%clk 0:02:49]} 8. Rd1 {[%clk 0:02:58]}  Ne6 {[%clk 0:02:48]} 9. c3 {[%clk 0:02:57]}  dxc3 {[%clk 0:02:46]} 10. Nxc3 {[%clk 0:02:58]}  O-O {[%clk 0:02:46]} 11. a3 {[%clk 0:02:56]}  d6 {[%clk 0:02:40]} 12. b4 {[%clk 0:02:50]}  a6 {[%clk 0:02:39]} 13. Bb2 {[%clk 0:02:47]}  Bd7 {[%clk 0:02:37]} 14. Rac1 {[%clk 0:02:24]}  Qc8 {[%clk 0:02:22]} 15. Nd5 {[%clk 0:02:19]}  Re8 {[%clk 0:02:10]} 16. Nxe7+ {[%clk 0:02:15]}  Rxe7 {[%clk 0:02:09]} 17. exd6 {[%clk 0:02:16]}  cxd6 {[%clk 0:02:08]} 18. Rxd6 {[%clk 0:02:05]}  Qc7 {[%clk 0:02:07]} 19. Rdd1 {[%clk 0:01:58]}  Rae8 {[%clk 0:02:05]} 20. Qd2 {[%clk 0:01:47]}  Bc8 {[%clk 0:02:01]} 21. a4 {[%clk 0:01:41]}  Rd8 {[%clk 0:01:59]} 22. Qc3 {[%clk 0:01:39]}  f6 {[%clk 0:01:39]} 23. Bxe6+ {[%clk 0:01:17]}  Bxe6 {[%clk 0:01:36]} 24. b5 {[%clk 0:01:18]}  Rxd1+ {[%clk 0:01:15]} 25. Rxd1 {[%clk 0:01:19]}  axb5 {[%clk 0:01:15]} 26. axb5 {[%clk 0:01:20]}  Rd7 {[%clk 0:01:15]} 27. Rc1 {[%clk 0:01:12]}  Bd5 {[%clk 0:00:39]} 28. bxc6 {[%clk 0:01:11]}  Bxc6 {[%clk 0:00:38]} 29. h3 {[%clk 0:01:08]}  h6 {[%clk 0:00:34]} 30. Nd4 {[%clk 0:00:57]}  Rd6 {[%clk 0:00:19]} 31. Nb5 {[%clk 0:00:54]}  Qd7 {[%clk 0:00:18]} 32. Nxd6 {[%clk 0:00:53]}  Qxd6 {[%clk 0:00:18]} 33. Ba3 {[%clk 0:00:50]}  Qf4 {[%clk 0:00:16]} 34. Qc4+ {[%clk 0:00:49]}  Qxc4 {[%clk 0:00:16]} 35. Rxc4 {[%clk 0:00:50]}  Kf7 {[%clk 0:00:17]} 36. f3 {[%clk 0:00:49]}  Ke6 {[%clk 0:00:18]} 37. Kf2 {[%clk 0:00:49]}  Kd5 {[%clk 0:00:16]} 38. Rb4 {[%clk 0:00:50]}  Kc5 {[%clk 0:00:16]} 39. Rxb7+ {[%clk 0:00:48]}  Kc4 {[%clk 0:00:16]} 40. Rxg7 {[%clk 0:00:48]}  Kb3 {[%clk 0:00:16]} 41. Be7 {[%clk 0:00:48]}  f5 {[%clk 0:00:16]} 42. Rg6 {[%clk 0:00:48]}  Bd5 {[%clk 0:00:16]} 43. Rxh6 {[%clk 0:00:48]}  Kc4 {[%clk 0:00:16]} 44. Rf6 {[%clk 0:00:48]}  f4 {[%clk 0:00:15]} 45. Rxf4+ {[%clk 0:00:48]}  Kd3 {[%clk 0:00:16]} 46. g4 {[%clk 0:00:48]}  Bb3 {[%clk 0:00:14]} 47. g5 {[%clk 0:00:49]}  Bg8 {[%clk 0:00:13]} 48. g6 {[%clk 0:00:49]}  Kc3 {[%clk 0:00:12]} 49. Rf7 {[%clk 0:00:49]}  Kd2 {[%clk 0:00:11]} 50. h4 {[%clk 0:00:49]}  Kd3 {[%clk 0:00:11]} 51. h5 {[%clk 0:00:49]}  Kd2 {[%clk 0:00:12]} 52. h6 {[%clk 0:00:50]}  Kd1 {[%clk 0:00:13]} 53. h7 {[%clk 0:00:50]}  Kd2 {[%clk 0:00:14]} 54. hxg8=Q {[%clk 0:00:50]}  Kd1 {[%clk 0:00:15]} 55. Qd8+ {[%clk 0:00:50]}  Kc2 {[%clk 0:00:14]} 56. Bf8 {[%clk 0:00:49]}  Kc1 {[%clk 0:00:13]} 57. Rc7+ {[%clk 0:00:50]} 1-0


[Site "https://www.chess.com"]

[Event "Titled Tuesday Blitz February 22 Early 2022"]
[White "Wagner, Dennis"]
[Black "Kozin, Yuri"]
[WhiteFideId "24650684"]
[BlackFideId "4129920"]
[WhiteElo "2355"]
[BlackElo "2565"]
[Result "1-0"]
[Round "03"]
[TimeControl "180+1"]
[Date "2022.02.22"]
[WhiteClock "0:00:51"]
[BlackClock "0:01:07"]

1. Nf3 {[%clk 0:03:00]}  c5 {[%clk 0:02:59]} 2. c4 {[%clk 0:02:59]}  Nf6 {[%clk 0:03:00]} 3. Nc3 {[%clk 0:02:59]}  e6 {[%clk 0:03:00]} 4. g3 {[%clk 0:02:58]}  Be7 {[%clk 0:03:00]} 5. Bg2 {[%clk 0:02:58]}  O-O {[%clk 0:03:01]} 6. O-O {[%clk 0:02:59]}  d6 {[%clk 0:03:01]} 7. d4 {[%clk 0:02:58]}  cxd4 {[%clk 0:03:02]} 8. Nxd4 {[%clk 0:02:58]}  a6 {[%clk 0:03:02]} 9. e4 {[%clk 0:02:43]}  Qc7 {[%clk 0:03:00]} 10. Be3 {[%clk 0:02:43]}  Nbd7 {[%clk 0:03:00]} 11. Rc1 {[%clk 0:02:42]}  Ne5 {[%clk 0:03:00]} 12. b3 {[%clk 0:02:41]}  Bd7 {[%clk 0:03:00]} 13. h3 {[%clk 0:02:40]}  Rac8 {[%clk 0:02:59]} 14. f4 {[%clk 0:02:38]}  Ng6 {[%clk 0:03:00]} 15. Kh2 {[%clk 0:02:36]}  Qb8 {[%clk 0:02:57]} 16. a4 {[%clk 0:02:28]}  h5 {[%clk 0:02:57]} 17. Nf3 {[%clk 0:02:23]}  Bc6 {[%clk 0:02:47]} 18. Ng5 {[%clk 0:02:20]}  b5 {[%clk 0:02:42]} 19. cxb5 {[%clk 0:01:55]}  axb5 {[%clk 0:02:41]} 20. f5 {[%clk 0:01:51]}  exf5 {[%clk 0:02:28]} 21. exf5 {[%clk 0:01:49]}  Ne5 {[%clk 0:02:15]} 22. Bxc6 {[%clk 0:01:47]}  Neg4+ {[%clk 0:02:11]} 23. hxg4 {[%clk 0:01:44]}  Nxg4+ {[%clk 0:02:12]} 24. Kh3 {[%clk 0:01:20]}  Nxe3 {[%clk 0:02:08]} 25. Qxh5 {[%clk 0:01:18]}  Bxg5 {[%clk 0:02:02]} 26. Qxg5 {[%clk 0:01:11]}  Rxc6 {[%clk 0:01:29]} 27. Qxe3 {[%clk 0:01:09]}  Rfc8 {[%clk 0:01:22]} 28. Nxb5 {[%clk 0:01:03]}  Rxc1 {[%clk 0:01:19]} 29. Rxc1 {[%clk 0:01:03]}  Re8 {[%clk 0:01:19]} 30. Qf4 {[%clk 0:01:00]}  Qa8 {[%clk 0:01:14]} 31. Nxd6 {[%clk 0:00:55]}  Rd8 {[%clk 0:01:12]} 32. f6 {[%clk 0:00:52]}  Qd5 {[%clk 0:01:07]} 33. Nf5 {[%clk 0:00:51]} 1-0


[Site "https://www.chess.com"]

[Event "Titled Tuesday Blitz February 22 Early 2022"]
[White "Yushko, Olga"]
[Black "Wachinger, Guenther"]
[WhiteFideId "14114500"]
[BlackFideId "4604261"]
[WhiteElo "2028"]
[BlackElo "2212"]
[Result "0-1"]
[Round "03"]
[TimeControl "180+1"]
[Date "2022.02.22"]
[WhiteClock "0:00:03"]
[BlackClock "0:00:21"]

1. d4 {[%clk 0:02:57]}  d5 {[%clk 0:02:59]} 2. c4 {[%clk 0:02:57]}  e6 {[%clk 0:03:00]} 3. cxd5 {[%clk 0:02:57]}  exd5 {[%clk 0:03:00]} 4. Nc3 {[%clk 0:02:58]}  c6 {[%clk 0:02:55]} 5. Nf3 {[%clk 0:02:59]}  Bd6 {[%clk 0:02:55]} 6. Bg5 {[%clk 0:02:58]}  Qb6 {[%clk 0:02:52]} 7. Qc2 {[%clk 0:02:55]}  Ne7 {[%clk 0:02:48]} 8. e3 {[%clk 0:02:52]}  Bf5 {[%clk 0:02:47]} 9. Qd2 {[%clk 0:02:45]}  O-O {[%clk 0:02:47]} 10. Be2 {[%clk 0:02:45]}  h6 {[%clk 0:02:45]} 11. Bh4 {[%clk 0:02:45]}  a5 {[%clk 0:02:36]} 12. O-O {[%clk 0:02:45]}  a4 {[%clk 0:02:30]} 13. Ne5 {[%clk 0:02:40]}  Nd7 {[%clk 0:02:22]} 14. Bd3 {[%clk 0:02:27]}  Bxd3 {[%clk 0:02:12]} 15. Qxd3 {[%clk 0:02:26]}  Nxe5 {[%clk 0:01:48]} 16. dxe5 {[%clk 0:02:25]}  Ng6 {[%clk 0:01:48]} 17. exd6 {[%clk 0:02:15]}  Nxh4 {[%clk 0:01:48]} 18. e4 {[%clk 0:02:15]}  Rfd8 {[%clk 0:01:30]} 19. e5 {[%clk 0:02:11]}  Ng6 {[%clk 0:01:27]} 20. Rfe1 {[%clk 0:02:00]}  Re8 {[%clk 0:01:28]} 21. Qg3 {[%clk 0:01:51]}  d4 {[%clk 0:01:21]} 22. Nd1 {[%clk 0:01:32]}  Qc5 {[%clk 0:01:15]} 23. f4 {[%clk 0:01:28]}  d3+ {[%clk 0:01:01]} 24. Nf2 {[%clk 0:01:27]}  d2 {[%clk 0:00:59]} 25. Red1 {[%clk 0:01:27]}  Qd4 {[%clk 0:00:58]} 26. Kh1 {[%clk 0:01:09]}  Nxf4 {[%clk 0:00:55]} 27. Ng4 {[%clk 0:01:06]}  Ng6 {[%clk 0:00:49]} 28. h4 {[%clk 0:00:50]}  h5 {[%clk 0:00:48]} 29. Ne3 {[%clk 0:00:33]}  Rxe5 {[%clk 0:00:42]} 30. Nf1 {[%clk 0:00:30]}  Qxd6 {[%clk 0:00:38]} 31. Rxd2 {[%clk 0:00:29]}  Qb4 {[%clk 0:00:33]} 32. Rad1 {[%clk 0:00:16]}  Qxh4+ {[%clk 0:00:30]} 33. Qxh4 {[%clk 0:00:13]}  Nxh4 {[%clk 0:00:31]} 34. Ng3 {[%clk 0:00:11]}  Ng6 {[%clk 0:00:25]} 35. Rd7 {[%clk 0:00:10]}  h4 {[%clk 0:00:23]} 36. Nf1 {[%clk 0:00:09]}  b5 {[%clk 0:00:23]} 37. Rc7 {[%clk 0:00:09]}  Re6 {[%clk 0:00:22]} 38. Rdd7 {[%clk 0:00:09]}  Ne5 {[%clk 0:00:21]} 39. Rd4 {[%clk 0:00:07]}  g5 {[%clk 0:00:20]} 40. Ne3 {[%clk 0:00:06]}  Rae8 {[%clk 0:00:18]} 41. Nf5 {[%clk 0:00:05]}  Ng6 {[%clk 0:00:18]} 42. Kh2 {[%clk 0:00:04]}  Re2 {[%clk 0:00:17]} 43. Nh6+ {[%clk 0:00:03]}  Kg7 {[%clk 0:00:16]} 44. Nxf7 {[%clk 0:00:03]}  R8e7 {[%clk 0:00:16]} 45. Rxe7 {[%clk 0:00:03]}  Nxe7 {[%clk 0:00:16]} 46. Nxg5 {[%clk 0:00:03]}  Rxb2 {[%clk 0:00:16]} 47. Rxh4 {[%clk 0:00:03]}  Rxa2 {[%clk 0:00:16]} 48. Ne6+ {[%clk 0:00:04]}  Kf6 {[%clk 0:00:16]} 49. Nd8 {[%clk 0:00:04]}  a3 {[%clk 0:00:16]} 50. Rh6+ {[%clk 0:00:04]}  Ke5 {[%clk 0:00:16]} 51. Nxc6+ {[%clk 0:00:04]}  Nxc6 {[%clk 0:00:17]} 52. Rxc6 {[%clk 0:00:04]}  Rb2 {[%clk 0:00:17]} 53. Ra6 {[%clk 0:00:04]}  b4 {[%clk 0:00:18]} 54. Ra4 {[%clk 0:00:04]}  a2 {[%clk 0:00:17]} 55. Kh3 {[%clk 0:00:03]}  b3 {[%clk 0:00:18]} 56. Kh2 {[%clk 0:00:02]}  Rb1 {[%clk 0:00:18]} 57. Ra5+ {[%clk 0:00:03]}  Kd4 {[%clk 0:00:18]} 58. Ra4+ {[%clk 0:00:03]}  Kc3 {[%clk 0:00:19]} 59. g4 {[%clk 0:00:03]}  a1=Q {[%clk 0:00:19]} 60. Rxa1 {[%clk 0:00:03]}  Rxa1 {[%clk 0:00:20]} 61. Kg3 {[%clk 0:00:03]}  b2 {[%clk 0:00:21]} 0-1


[Site "https://www.chess.com"]

[Event "Titled Tuesday Blitz February 22 Early 2022"]
[White "Zaksaite, Salomeja"]
[Black "Elissalt Cardenas, Hector"]
[WhiteFideId "12801496"]
[BlackFideId "3500632"]
[WhiteElo "2002"]
[BlackElo "2159"]
[Result "0-1"]
[Round "03"]
[TimeControl "180+1"]
[Date "2022.02.22"]
[WhiteClock "0:00:10"]
[BlackClock "0:01:25"]

1. e4 {[%clk 0:02:54]}  d6 {[%clk 0:02:57]} 2. d4 {[%clk 0:02:52]}  Nf6 {[%clk 0:02:53]} 3. Nc3 {[%clk 0:02:52]}  e5 {[%clk 0:02:51]} 4. Nf3 {[%clk 0:02:47]}  Nbd7 {[%clk 0:02:43]} 5. Bc4 {[%clk 0:02:45]}  Be7 {[%clk 0:02:41]} 6. O-O {[%clk 0:02:42]}  O-O {[%clk 0:02:40]} 7. Re1 {[%clk 0:02:42]}  c6 {[%clk 0:02:34]} 8. a4 {[%clk 0:02:41]}  b6 {[%clk 0:02:32]} 9. Ba2 {[%clk 0:02:37]}  a6 {[%clk 0:02:28]} 10. h3 {[%clk 0:02:22]}  Rb8 {[%clk 0:02:23]} 11. Bg5 {[%clk 0:02:17]}  b5 {[%clk 0:02:18]} 12. axb5 {[%clk 0:02:15]}  axb5 {[%clk 0:02:08]} 13. b4 {[%clk 0:02:12]}  h6 {[%clk 0:02:05]} 14. Bxf6 {[%clk 0:02:09]}  Bxf6 {[%clk 0:01:55]} 15. dxe5 {[%clk 0:01:55]}  Nxe5 {[%clk 0:01:48]} 16. Nd4 {[%clk 0:01:51]}  Bd7 {[%clk 0:01:42]} 17. Qd2 {[%clk 0:01:33]}  Qb6 {[%clk 0:01:37]} 18. Rad1 {[%clk 0:00:44]}  Bxh3 {[%clk 0:01:34]} 19. gxh3 {[%clk 0:00:40]}  Qxd4 {[%clk 0:01:34]} 20. Qxd4 {[%clk 0:00:22]}  Nf3+ {[%clk 0:01:30]} 21. Kf1 {[%clk 0:00:17]}  Nxd4 {[%clk 0:01:30]} 22. Rd2 {[%clk 0:00:10]}  Nf3 {[%clk 0:01:25]} 0-1


[Site "https://www.chess.com"]